[Event "Early-Titled-Tuesday-Blitz-March-12-2024"]
[Site "Chess.com"]
[Date "2024.03.12"]
[Round "11"]
[White "AccioChess"]
[Black "szachuspl"]
[Result "0-1"]
[WhiteElo "2432"]
[BlackElo "2535"]
[TimeControl "180+1"]
[EndTime "10:02:04 PDT"]
[Termination "szachuspl won on time"]

1. b3 {[%clk 0:02:54.7]} 1... Nf6 {[%clk 0:02:55.8]} 2. Bb2 {[%clk 0:02:54.8]}
2... g6 {[%clk 0:02:56.5]} 3. e4 {[%clk 0:02:54.6]} 3... Bg7 {[%clk 0:02:56.6]}
4. e5 {[%clk 0:02:54.2]} 4... Nd5 {[%clk 0:02:57]} 5. c4 {[%clk 0:02:53.8]} 5...
Nb6 {[%clk 0:02:57]} 6. d4 {[%clk 0:02:54]} 6... d6 {[%clk 0:02:57]} 7. f4
{[%clk 0:02:53.6]} 7... dxe5 {[%clk 0:02:57.1]} 8. fxe5 {[%clk 0:02:53.4]} 8...
O-O {[%clk 0:02:57.3]} 9. Nf3 {[%clk 0:02:52.7]} 9... c5 {[%clk 0:02:55.1]} 10.
d5 {[%clk 0:02:52]} 10... Bg4 {[%clk 0:02:54]} 11. h3 {[%clk 0:02:51.7]} 11...
Bxf3 {[%clk 0:02:54.3]} 12. Qxf3 {[%clk 0:02:52.4]} 12... N8d7 {[%clk
0:02:54.8]} 13. Qe2 {[%clk 0:02:46.5]} 13... Qc7 {[%clk 0:02:54.7]} 14. Nc3
{[%clk 0:02:43.3]} 14... Qxe5 {[%clk 0:02:52.3]} 15. Qxe5 {[%clk 0:02:41.1]}
15... Nxe5 {[%clk 0:02:52.7]} 16. Be2 {[%clk 0:02:40]} 16... Nc8 {[%clk
0:02:51.4]} 17. O-O-O {[%clk 0:02:33.4]} 17... Nd6 {[%clk 0:02:51.5]} 18. g4
{[%clk 0:02:29.7]} 18... a6 {[%clk 0:02:46.4]} 19. Na4 {[%clk 0:02:22.8]} 19...
Rac8 {[%clk 0:02:42.3]} 20. Nb6 {[%clk 0:02:20.4]} 20... Rc7 {[%clk 0:02:42.8]}
21. h4 {[%clk 0:02:09.6]} 21... Ne4 {[%clk 0:02:43]} 22. Rh2 {[%clk 0:01:59.4]}
22... Ng3 {[%clk 0:02:40.9]} 23. g5 {[%clk 0:01:22.6]} 23... Rd8 {[%clk
0:02:38.3]} 24. a4 {[%clk 0:01:18.5]} 24... Nxe2+ {[%clk 0:02:32.3]} 25. Rxe2
{[%clk 0:01:17.5]} 25... Nf3 {[%clk 0:02:33]} 26. Bxg7 {[%clk 0:01:13.8]} 26...
Kxg7 {[%clk 0:02:33.9]} 27. Rh1 {[%clk 0:01:07.4]} 27... a5 {[%clk 0:02:33.7]}
28. d6 {[%clk 0:01:01.8]} 28... Rxd6 {[%clk 0:02:29.1]} 29. Nd5 {[%clk
0:01:01.2]} 29... Rxd5 {[%clk 0:02:29.5]} 30. cxd5 {[%clk 0:01:01]} 30... Nd4
{[%clk 0:02:29.9]} 31. Re3 {[%clk 0:01:00.9]} 31... Rd7 {[%clk 0:02:29.8]} 32.
Kb2 {[%clk 0:00:56]} 32... Kf8 {[%clk 0:02:29.2]} 33. h5 {[%clk 0:00:52.4]}
33... Rxd5 {[%clk 0:02:27.5]} 34. hxg6 {[%clk 0:00:52.7]} 34... hxg6 {[%clk
0:02:27.8]} 35. Rh8+ {[%clk 0:00:52.4]} 35... Kg7 {[%clk 0:02:28.3]} 36. Reh3
{[%clk 0:00:52.4]} 36... Rxg5 {[%clk 0:02:28.6]} 37. R3h7+ {[%clk 0:00:49.9]}
37... Kf6 {[%clk 0:02:28.6]} 38. Rf8 {[%clk 0:00:50.1]} 38... Rg2+ {[%clk
0:02:27.1]} 39. Kb1 {[%clk 0:00:50.1]} 39... Nf5 {[%clk 0:02:14.2]} 40. Rhxf7+
{[%clk 0:00:40]} 40... Ke6 {[%clk 0:02:14.3]} 41. Rh7 {[%clk 0:00:37.5]} 41...
g5 {[%clk 0:02:12]} 42. Rg8 {[%clk 0:00:27]} 42... g4 {[%clk 0:02:11.1]} 43. Rh1
{[%clk 0:00:09.2]} 43... g3 {[%clk 0:02:06.9]} 44. Re1+ {[%clk 0:00:09]} 44...
Kf7 {[%clk 0:02:07.4]} 45. Rb8 {[%clk 0:00:08.1]} 45... Rf2 {[%clk 0:02:04.2]}
46. Rd8 {[%clk 0:00:06]} 46... g2 {[%clk 0:02:03.4]} 47. Rdd1 {[%clk 0:00:05.8]}
47... Ng3 {[%clk 0:02:02]} 0-1

[Event "Early-Titled-Tuesday-Blitz-March-12-2024"]
[Site "Chess.com"]
[Date "2024.03.12"]
[Round "11"]
[White "Switzerlamb"]
[Black "Jimonios"]
[Result "1-0"]
[WhiteElo "2575"]
[BlackElo "2664"]
[TimeControl "180+1"]
[EndTime "10:02:09 PDT"]
[Termination "Switzerlamb won by resignation"]

1. Nf3 {[%clk 0:03:00.9]} 1... c5 {[%clk 0:02:59.1]} 2. c4 {[%clk 0:03:01.3]}
2... Nc6 {[%clk 0:02:58.9]} 3. Nc3 {[%clk 0:03:01.7]} 3... g6 {[%clk 0:02:59.1]}
4. g3 {[%clk 0:03:00.4]} 4... Bg7 {[%clk 0:02:59.6]} 5. Bg2 {[%clk 0:03:01.1]}
5... e5 {[%clk 0:03:00.3]} 6. O-O {[%clk 0:03:00.1]} 6... Nge7 {[%clk
0:03:00.9]} 7. d3 {[%clk 0:03:00.5]} 7... O-O {[%clk 0:03:00.2]} 8. Rb1 {[%clk
0:03:00.7]} 8... d6 {[%clk 0:02:58.8]} 9. a3 {[%clk 0:03:00.9]} 9... a5 {[%clk
0:02:59.1]} 10. Ne1 {[%clk 0:02:58.4]} 10... f5 {[%clk 0:02:56.5]} 11. Nc2
{[%clk 0:02:56.7]} 11... f4 {[%clk 0:02:57]} 12. b4 {[%clk 0:02:56.3]} 12...
axb4 {[%clk 0:02:48.7]} 13. axb4 {[%clk 0:02:56.9]} 13... Bg4 {[%clk 0:02:46.7]}
14. bxc5 {[%clk 0:02:54.9]} 14... dxc5 {[%clk 0:02:46]} 15. Rxb7 {[%clk
0:02:54.7]} 15... Nd4 {[%clk 0:02:42.9]} 16. Nxd4 {[%clk 0:02:39.4]} 16... cxd4
{[%clk 0:02:43.8]} 17. Nd5 {[%clk 0:02:39.1]} 17... Nxd5 {[%clk 0:02:05.3]} 18.
Bxd5+ {[%clk 0:02:40]} 18... Kh8 {[%clk 0:02:06.1]} 19. Bd2 {[%clk 0:02:22.1]}
19... Ra6 {[%clk 0:01:19.4]} 20. Bb4 {[%clk 0:02:16.9]} 20... Re8 {[%clk
0:01:15.2]} 21. Qd2 {[%clk 0:01:42.3]} 21... Rf6 {[%clk 0:01:05.9]} 22. Ra1
{[%clk 0:01:38.1]} 22... fxg3 {[%clk 0:01:00.4]} 23. hxg3 {[%clk 0:01:39]} 23...
Qc8 {[%clk 0:00:43.6]} 24. Raa7 {[%clk 0:01:35]} 24... Qf5 {[%clk 0:00:39.5]}
25. Qe1 {[%clk 0:01:28.9]} 25... Bh3 {[%clk 0:00:02.7]} 26. Rxg7 {[%clk
0:01:22.9]} 26... Qxd3 {[%clk 0:00:02.7]} 1-0

[Event "Early-Titled-Tuesday-Blitz-March-12-2024"]
[Site "Chess.com"]
[Date "2024.03.12"]
[Round "11"]
[White "Lady_Nika"]
[Black "david_gomez"]
[Result "1-0"]
[WhiteElo "2557"]
[BlackElo "2614"]
[TimeControl "180+1"]
[EndTime "10:02:16 PDT"]
[Termination "Lady_Nika won by resignation"]

1. d4 {[%clk 0:02:56.3]} 1... Nf6 {[%clk 0:02:45.2]} 2. e3 {[%clk 0:02:57]} 2...
c5 {[%clk 0:02:37.3]} 3. f4 {[%clk 0:02:57.7]} 3... cxd4 {[%clk 0:02:34.4]} 4.
exd4 {[%clk 0:02:58.4]} 4... d5 {[%clk 0:02:33.2]} 5. Nf3 {[%clk 0:02:58.9]}
5... Bf5 {[%clk 0:02:30.5]} 6. c3 {[%clk 0:02:59.3]} 6... e6 {[%clk 0:02:29.4]}
7. Bd3 {[%clk 0:02:56]} 7... Bxd3 {[%clk 0:02:28.7]} 8. Qxd3 {[%clk 0:02:56.9]}
8... Be7 {[%clk 0:02:28.7]} 9. O-O {[%clk 0:02:57.1]} 9... Ne4 {[%clk
0:02:28.6]} 10. Nbd2 {[%clk 0:02:54.6]} 10... f5 {[%clk 0:02:28.4]} 11. Ne5
{[%clk 0:02:52.7]} 11... Nd7 {[%clk 0:02:27.5]} 12. Nxe4 {[%clk 0:02:52.2]}
12... dxe4 {[%clk 0:02:27.2]} 13. Qb5 {[%clk 0:02:51.6]} 13... Qc7 {[%clk
0:02:22.4]} 14. Be3 {[%clk 0:02:42.4]} 14... a6 {[%clk 0:02:22.2]} 15. Qb3
{[%clk 0:02:39.5]} 15... Nxe5 {[%clk 0:02:20.9]} 16. fxe5 {[%clk 0:02:38.7]}
16... Qd7 {[%clk 0:02:19.3]} 17. Rad1 {[%clk 0:02:35.1]} 17... O-O {[%clk
0:02:17.8]} 18. c4 {[%clk 0:02:34.4]} 18... b5 {[%clk 0:02:13.6]} 19. d5 {[%clk
0:02:22.7]} 19... bxc4 {[%clk 0:02:12.4]} 20. Qxc4 {[%clk 0:02:22.3]} 20... Rfc8
{[%clk 0:02:07.3]} 21. dxe6 {[%clk 0:02:14.1]} 21... Qxd1 {[%clk 0:02:05.2]} 22.
Qxc8+ {[%clk 0:02:13.9]} 22... Rxc8 {[%clk 0:02:06.1]} 23. Rxd1 {[%clk
0:02:14.1]} 23... Rc2 {[%clk 0:02:02.9]} 24. Rd7 {[%clk 0:02:09.7]} 24... Kf8
{[%clk 0:02:01.1]} 25. Rb7 {[%clk 0:02:09.4]} 25... g5 {[%clk 0:01:57.2]} 26.
Rb8+ {[%clk 0:02:02.4]} 26... Kg7 {[%clk 0:01:57.1]} 27. Rb7 {[%clk 0:02:02.3]}
27... Kf8 {[%clk 0:01:57.4]} 28. g3 {[%clk 0:02:01.3]} 28... Re2 {[%clk
0:01:54.1]} 29. Rb8+ {[%clk 0:01:50.6]} 29... Kg7 {[%clk 0:01:53.7]} 30. Re8
{[%clk 0:01:50.1]} 30... Bb4 {[%clk 0:01:32.3]} 31. Bxg5 {[%clk 0:01:47.2]}
31... e3 {[%clk 0:01:29.3]} 32. Bf6+ {[%clk 0:01:40.6]} 32... Kh6 {[%clk
0:01:28.4]} 33. Rb8 {[%clk 0:01:25.4]} 33... Re1+ {[%clk 0:01:27.3]} 34. Kg2
{[%clk 0:01:25]} 34... e2 {[%clk 0:01:25.3]} 35. Kf2 {[%clk 0:01:17.1]} 35...
Rb1 {[%clk 0:00:50.3]} 36. Kxe2 {[%clk 0:01:16.9]} 36... Rxb2+ {[%clk
0:00:50.4]} 37. Kd3 {[%clk 0:01:16.9]} 37... Rd2+ {[%clk 0:00:48]} 38. Ke3
{[%clk 0:01:16.9]} 38... Rb2 {[%clk 0:00:47]} 39. Kf3 {[%clk 0:01:12.6]} 39...
Be1 {[%clk 0:00:39.3]} 40. Rxb2 {[%clk 0:01:10.8]} 1-0

[Event "Early-Titled-Tuesday-Blitz-March-12-2024"]
[Site "Chess.com"]
[Date "2024.03.12"]
[Round "11"]
[White "Cryptinz"]
[Black "Maxfan2008"]
[Result "1-0"]
[WhiteElo "2529"]
[BlackElo "2604"]
[TimeControl "180+1"]
[EndTime "10:02:26 PDT"]
[Termination "Cryptinz won by resignation"]

1. e4 {[%clk 0:03:00.9]} 1... c5 {[%clk 0:03:00.1]} 2. Nf3 {[%clk 0:03:00.8]}
2... d6 {[%clk 0:03:00.6]} 3. d4 {[%clk 0:03:01.4]} 3... cxd4 {[%clk 0:03:01.5]}
4. Nxd4 {[%clk 0:03:02.1]} 4... Nf6 {[%clk 0:03:02.1]} 5. Nc3 {[%clk 0:03:02.4]}
5... a6 {[%clk 0:03:02.7]} 6. Bg5 {[%clk 0:03:03]} 6... e6 {[%clk 0:03:03]} 7.
Qd2 {[%clk 0:03:03.2]} 7... Be7 {[%clk 0:02:54.5]} 8. O-O-O {[%clk 0:03:03.1]}
8... b5 {[%clk 0:02:51]} 9. a3 {[%clk 0:02:28.2]} 9... Bb7 {[%clk 0:02:50.2]}
10. Bd3 {[%clk 0:02:12.9]} 10... Nbd7 {[%clk 0:02:44.7]} 11. f4 {[%clk
0:02:10.1]} 11... Rc8 {[%clk 0:02:44.6]} 12. Kb1 {[%clk 0:02:06.7]} 12... Nb6
{[%clk 0:02:39.7]} 13. e5 {[%clk 0:02:02.9]} 13... Nfd5 {[%clk 0:02:33.6]} 14.
Nxd5 {[%clk 0:01:56.6]} 14... Bxd5 {[%clk 0:02:32.7]} 15. Bxe7 {[%clk 0:01:54]}
15... Qxe7 {[%clk 0:02:33.6]} 16. Qa5 {[%clk 0:01:38.6]} 16... dxe5 {[%clk
0:02:15.6]} 17. Nxb5 {[%clk 0:01:26.2]} 17... O-O {[%clk 0:02:07.2]} 18. Qxb6
{[%clk 0:01:12.7]} 18... axb5 {[%clk 0:02:05.9]} 19. fxe5 {[%clk 0:01:12.9]}
19... Rb8 {[%clk 0:01:55.4]} 20. Qd6 {[%clk 0:00:56.4]} 20... Qxd6 {[%clk
0:01:54.5]} 21. exd6 {[%clk 0:00:57.3]} 21... Rfd8 {[%clk 0:01:55.1]} 22. Rhe1
{[%clk 0:00:49.8]} 22... Rb6 {[%clk 0:01:47.3]} 23. Be4 {[%clk 0:00:45.5]} 23...
Rbxd6 {[%clk 0:01:43.5]} 24. Bxd5 {[%clk 0:00:43.4]} 24... Rxd5 {[%clk
0:01:44.4]} 25. Rxd5 {[%clk 0:00:42.8]} 25... Rxd5 {[%clk 0:01:45.3]} 26. c4
{[%clk 0:00:41.1]} 26... bxc4 {[%clk 0:01:44.1]} 27. Rc1 {[%clk 0:00:40]} 27...
g5 {[%clk 0:01:37.9]} 28. Rxc4 {[%clk 0:00:39.8]} 28... Rd2 {[%clk 0:01:37.4]}
29. Rc2 {[%clk 0:00:36.7]} 29... Rd1+ {[%clk 0:01:32.9]} 30. Ka2 {[%clk
0:00:36.8]} 30... f5 {[%clk 0:01:28.2]} 31. b4 {[%clk 0:00:37.2]} 31... e5
{[%clk 0:01:23.4]} 32. b5 {[%clk 0:00:37.3]} 32... Rd6 {[%clk 0:01:19.8]} 33. a4
{[%clk 0:00:36.9]} 33... e4 {[%clk 0:01:19.5]} 34. Rb2 {[%clk 0:00:22.6]} 34...
e3 {[%clk 0:01:18.9]} 35. b6 {[%clk 0:00:23]} 35... Rd2 {[%clk 0:01:16.1]} 36.
b7 {[%clk 0:00:22.1]} 36... Rxb2+ {[%clk 0:01:12.4]} 37. Kxb2 {[%clk 0:00:22.1]}
37... e2 {[%clk 0:01:13.3]} 38. b8=Q+ {[%clk 0:00:22.3]} 38... Kg7 {[%clk
0:01:14.2]} 39. Qe5+ {[%clk 0:00:23.1]} 39... Kg8 {[%clk 0:01:15.1]} 40. Qxe2
{[%clk 0:00:23.1]} 1-0

[Event "Early-Titled-Tuesday-Blitz-March-12-2024"]
[Site "Chess.com"]
[Date "2024.03.12"]
[Round "11"]
[White "enriquebutti"]
[Black "rhwr"]
[Result "1/2-1/2"]
[WhiteElo "2222"]
[BlackElo "2298"]
[TimeControl "180+1"]
[EndTime "10:02:29 PDT"]
[Termination "Game drawn - insufficient material"]

1. d4 {[%clk 0:03:00]} 1... Nf6 {[%clk 0:02:59.2]} 2. Nf3 {[%clk 0:02:58.6]}
2... g6 {[%clk 0:02:59.6]} 3. c4 {[%clk 0:02:58.1]} 3... Bg7 {[%clk 0:03:00.2]}
4. Nc3 {[%clk 0:02:57.9]} 4... O-O {[%clk 0:03:00.8]} 5. Bg5 {[%clk 0:02:57.2]}
5... d6 {[%clk 0:02:59.5]} 6. e3 {[%clk 0:02:56.8]} 6... Nbd7 {[%clk 0:02:58]}
7. Be2 {[%clk 0:02:56.3]} 7... c5 {[%clk 0:02:57.9]} 8. O-O {[%clk 0:02:54.4]}
8... cxd4 {[%clk 0:02:56.6]} 9. Nxd4 {[%clk 0:02:53.8]} 9... a6 {[%clk
0:02:56.6]} 10. Rc1 {[%clk 0:02:52.4]} 10... h6 {[%clk 0:02:51.6]} 11. Bh4
{[%clk 0:02:51.2]} 11... Qa5 {[%clk 0:02:46.3]} 12. Qd2 {[%clk 0:02:40.4]} 12...
Nc5 {[%clk 0:02:36.8]} 13. Rfd1 {[%clk 0:02:30.5]} 13... Ne6 {[%clk 0:02:27.9]}
14. Bxf6 {[%clk 0:02:21.6]} 14... Bxf6 {[%clk 0:02:27.5]} 15. Nd5 {[%clk
0:02:20.7]} 15... Qxd2 {[%clk 0:02:26.3]} 16. Nxf6+ {[%clk 0:02:19.6]} 16...
exf6 {[%clk 0:02:24.1]} 17. Rxd2 {[%clk 0:02:19.3]} 17... Nc5 {[%clk 0:02:19.8]}
18. Bf3 {[%clk 0:02:16]} 18... f5 {[%clk 0:02:15.5]} 19. b4 {[%clk 0:02:10]}
19... Ne4 {[%clk 0:02:15.2]} 20. Bxe4 {[%clk 0:02:09.4]} 20... fxe4 {[%clk
0:02:15.2]} 21. Nb3 {[%clk 0:02:01.9]} 21... Rd8 {[%clk 0:02:12.8]} 22. c5
{[%clk 0:01:52.2]} 22... d5 {[%clk 0:02:11.9]} 23. Nd4 {[%clk 0:01:48.1]} 23...
Be6 {[%clk 0:02:08]} 24. c6 {[%clk 0:01:44.8]} 24... bxc6 {[%clk 0:02:07.5]} 25.
Rxc6 {[%clk 0:01:44.3]} 25... Rdc8 {[%clk 0:02:02.9]} 26. Rdc2 {[%clk
0:01:43.3]} 26... Rxc6 {[%clk 0:01:56.2]} 27. Rxc6 {[%clk 0:01:42.3]} 27... Rc8
{[%clk 0:01:56.7]} 28. Rxc8+ {[%clk 0:01:41.5]} 28... Bxc8 {[%clk 0:01:56.7]}
29. Nb3 {[%clk 0:01:40.8]} 29... Bd7 {[%clk 0:01:53]} 30. Nc5 {[%clk 0:01:40.3]}
30... Bb5 {[%clk 0:01:53.5]} 31. a4 {[%clk 0:01:39.7]} 31... Bc4 {[%clk
0:01:53.8]} 32. f3 {[%clk 0:01:37.5]} 32... exf3 {[%clk 0:01:52.9]} 33. gxf3
{[%clk 0:01:36.9]} 33... Kf8 {[%clk 0:01:53.1]} 34. Kf2 {[%clk 0:01:35.9]} 34...
Ke7 {[%clk 0:01:53.2]} 35. Ke1 {[%clk 0:01:35.2]} 35... Kd6 {[%clk 0:01:53.4]}
36. Kd2 {[%clk 0:01:34.9]} 36... Kc6 {[%clk 0:01:53]} 37. Kc3 {[%clk 0:01:34.3]}
37... a5 {[%clk 0:01:52.8]} 38. Nb3 {[%clk 0:01:24.4]} 38... axb4+ {[%clk
0:01:46.4]} 39. Kxb4 {[%clk 0:01:23.7]} 39... Bxb3 {[%clk 0:01:39.4]} 40. Kxb3
{[%clk 0:01:23.2]} 40... Kc5 {[%clk 0:01:40.1]} 41. Kc3 {[%clk 0:01:22.8]} 41...
g5 {[%clk 0:01:38.3]} 42. a5 {[%clk 0:01:18]} 42... f5 {[%clk 0:01:26]} 43. a6
{[%clk 0:01:16.3]} 43... Kb6 {[%clk 0:01:25.9]} 44. Kd4 {[%clk 0:01:16]} 44...
g4 {[%clk 0:01:24.7]} 45. fxg4 {[%clk 0:01:12.3]} 45... fxg4 {[%clk 0:01:24.7]}
46. Kxd5 {[%clk 0:01:12.7]} 46... h5 {[%clk 0:01:25.3]} 47. Ke4 {[%clk
0:01:10.3]} 47... h4 {[%clk 0:01:25.8]} 48. Kf4 {[%clk 0:01:02.3]} 48... g3
{[%clk 0:01:25.7]} 49. Kf3 {[%clk 0:01:02.1]} 49... gxh2 {[%clk 0:01:20.2]} 50.
Kg2 {[%clk 0:01:01.8]} 50... Kxa6 {[%clk 0:01:20.9]} 51. Kxh2 {[%clk 0:00:58.7]}
51... Kb5 {[%clk 0:01:20.5]} 52. Kh3 {[%clk 0:00:58.8]} 52... Kc4 {[%clk
0:01:21.4]} 53. Kxh4 {[%clk 0:00:58.8]} 53... Kd3 {[%clk 0:01:21.8]} 54. Kg4
{[%clk 0:00:58.1]} 54... Kxe3 {[%clk 0:01:22.1]} 1/2-1/2

[Event "Early-Titled-Tuesday-Blitz-March-12-2024"]
[Site "Chess.com"]
[Date "2024.03.12"]
[Round "11"]
[White "mishanick"]
[Black "Oleksandr_Bortnyk"]
[Result "1-0"]
[WhiteElo "3110"]
[BlackElo "3012"]
[TimeControl "180+1"]
[EndTime "10:02:32 PDT"]
[Termination "mishanick won by resignation"]

1. d4 {[%clk 0:02:59.9]} 1... Nf6 {[%clk 0:03:00.2]} 2. c4 {[%clk 0:03:00.1]}
2... b6 {[%clk 0:03:00.5]} 3. f3 {[%clk 0:02:59.8]} 3... Bb7 {[%clk 0:03:01.1]}
4. e4 {[%clk 0:03:00]} 4... Nc6 {[%clk 0:03:01.7]} 5. Be3 {[%clk 0:02:59.9]}
5... e5 {[%clk 0:03:00]} 6. d5 {[%clk 0:03:00]} 6... Nd4 {[%clk 0:03:00.6]} 7.
Ne2 {[%clk 0:02:57.4]} 7... Bc5 {[%clk 0:02:42.5]} 8. Nxd4 {[%clk 0:02:54.2]}
8... exd4 {[%clk 0:02:43.4]} 9. Bxd4 {[%clk 0:02:54.4]} 9... Nxe4 {[%clk
0:02:27.5]} 10. Bxc5 {[%clk 0:02:32.8]} 10... Nxc5 {[%clk 0:02:28.4]} 11. Qd4
{[%clk 0:02:32.9]} 11... O-O {[%clk 0:02:18.8]} 12. Nc3 {[%clk 0:02:30]} 12...
Qg5 {[%clk 0:02:15.3]} 13. Kf2 {[%clk 0:02:28.2]} 13... Rae8 {[%clk 0:02:07.3]}
14. Rd1 {[%clk 0:02:15.5]} 14... f5 {[%clk 0:01:45.2]} 15. h4 {[%clk 0:01:54.3]}
15... Qe7 {[%clk 0:01:32.9]} 16. h5 {[%clk 0:01:26.1]} 16... h6 {[%clk
0:01:17.4]} 17. g3 {[%clk 0:01:26.3]} 17... f4 {[%clk 0:01:09]} 18. gxf4 {[%clk
0:01:22.4]} 18... d6 {[%clk 0:01:03.8]} 19. b4 {[%clk 0:01:16.4]} 19... Na6
{[%clk 0:00:42.1]} 20. a3 {[%clk 0:01:15.5]} 20... c5 {[%clk 0:00:31.6]} 21.
dxc6 {[%clk 0:01:15]} 21... Bxc6 {[%clk 0:00:32.3]} 22. b5 {[%clk 0:01:03]}
22... Nc5 {[%clk 0:00:25.9]} 23. bxc6 {[%clk 0:01:03.2]} 23... Nb3 {[%clk
0:00:26.8]} 24. Nd5 {[%clk 0:00:57.2]} 24... Qe6 {[%clk 0:00:20.5]} 25. Qc3
{[%clk 0:00:55.9]} 25... Nc5 {[%clk 0:00:20.2]} 26. Re1 {[%clk 0:00:53.8]} 26...
Qf5 {[%clk 0:00:17.8]} 27. Rxe8 {[%clk 0:00:52.6]} 27... Rxe8 {[%clk 0:00:18.7]}
28. Bh3 {[%clk 0:00:50.4]} 28... Qf7 {[%clk 0:00:11.4]} 29. c7 {[%clk
0:00:50.6]} 1-0

[Event "Early-Titled-Tuesday-Blitz-March-12-2024"]
[Site "Chess.com"]
[Date "2024.03.12"]
[Round "11"]
[White "josephymwale33"]
[Black "ViktoriyaTarasova"]
[Result "1-0"]
[WhiteElo "2495"]
[BlackElo "2320"]
[TimeControl "180+1"]
[EndTime "10:02:36 PDT"]
[Termination "josephymwale33 won by resignation"]

1. e4 {[%clk 0:03:00.9]} 1... e5 {[%clk 0:02:59.6]} 2. Nf3 {[%clk 0:03:00.6]}
2... Nc6 {[%clk 0:02:59.6]} 3. d4 {[%clk 0:03:01.1]} 3... exd4 {[%clk
0:02:59.2]} 4. Bc4 {[%clk 0:03:01.2]} 4... Bc5 {[%clk 0:02:58.7]} 5. c3 {[%clk
0:03:00.4]} 5... Nf6 {[%clk 0:02:57.2]} 6. cxd4 {[%clk 0:03:00.6]} 6... Bb4+
{[%clk 0:02:56.9]} 7. Bd2 {[%clk 0:03:01.2]} 7... Bxd2+ {[%clk 0:02:55.4]} 8.
Nbxd2 {[%clk 0:03:02.1]} 8... d5 {[%clk 0:02:51.9]} 9. exd5 {[%clk 0:03:02]}
9... Nxd5 {[%clk 0:02:48.7]} 10. O-O {[%clk 0:03:01.6]} 10... O-O {[%clk
0:02:48.2]} 11. Re1 {[%clk 0:02:57.9]} 11... Be6 {[%clk 0:02:47.2]} 12. a3
{[%clk 0:02:52.3]} 12... Nce7 {[%clk 0:02:43.9]} 13. Ne4 {[%clk 0:02:45.3]}
13... c6 {[%clk 0:02:39.6]} 14. Nc5 {[%clk 0:02:35.4]} 14... Bc8 {[%clk
0:02:39.5]} 15. Qc2 {[%clk 0:02:25.5]} 15... Qc7 {[%clk 0:02:25.6]} 16. Ne5
{[%clk 0:02:19.4]} 16... Bf5 {[%clk 0:02:10.9]} 17. Bd3 {[%clk 0:02:14.9]} 17...
Bxd3 {[%clk 0:02:10.1]} 18. Qxd3 {[%clk 0:02:11.6]} 18... Ng6 {[%clk 0:02:09.4]}
19. Nxg6 {[%clk 0:02:04]} 19... hxg6 {[%clk 0:02:07.7]} 20. Re5 {[%clk
0:01:55.7]} 20... Rad8 {[%clk 0:02:04.6]} 21. Rae1 {[%clk 0:01:53.9]} 21... b6
{[%clk 0:02:00]} 22. Nb3 {[%clk 0:01:46]} 22... Qd6 {[%clk 0:01:59.1]} 23. Qf3
{[%clk 0:01:26.8]} 23... Qd7 {[%clk 0:01:48.2]} 24. h4 {[%clk 0:01:24.9]} 24...
Rfe8 {[%clk 0:01:46.3]} 25. h5 {[%clk 0:01:22]} 25... Rxe5 {[%clk 0:01:43]} 26.
Rxe5 {[%clk 0:01:22.9]} 26... gxh5 {[%clk 0:01:35.9]} 27. Qxh5 {[%clk
0:01:18.7]} 27... Nf6 {[%clk 0:01:35.2]} 28. Qe2 {[%clk 0:01:15]} 28... a5
{[%clk 0:01:18.9]} 29. Re7 {[%clk 0:00:55.6]} 29... Qd5 {[%clk 0:01:17.7]} 30.
Qc2 {[%clk 0:00:43.2]} 30... a4 {[%clk 0:01:15.1]} 31. Nd2 {[%clk 0:00:41.1]}
31... Qxd4 {[%clk 0:01:14.6]} 32. Nf3 {[%clk 0:00:40.5]} 32... Qd1+ {[%clk
0:01:14.2]} 33. Qxd1 {[%clk 0:00:41.1]} 33... Rxd1+ {[%clk 0:01:14.5]} 34. Kh2
{[%clk 0:00:41.7]} 34... Rb1 {[%clk 0:01:10.5]} 35. Rc7 {[%clk 0:00:27.3]} 35...
c5 {[%clk 0:01:09.1]} 36. Ng5 {[%clk 0:00:22.6]} 36... Rxb2 {[%clk 0:01:05]} 37.
Rc8+ {[%clk 0:00:22.5]} 1-0

[Event "Early-Titled-Tuesday-Blitz-March-12-2024"]
[Site "Chess.com"]
[Date "2024.03.12"]
[Round "11"]
[White "sokidze"]
[Black "Kielinkei"]
[Result "1-0"]
[WhiteElo "2781"]
[BlackElo "2587"]
[TimeControl "180+1"]
[EndTime "10:02:38 PDT"]
[Termination "sokidze won by resignation"]

1. d4 {[%clk 0:03:00.9]} 1... Nf6 {[%clk 0:03:00.1]} 2. c4 {[%clk 0:03:00.1]}
2... e6 {[%clk 0:03:00.6]} 3. Nc3 {[%clk 0:03:00.2]} 3... Bb4 {[%clk 0:03:00.9]}
4. e3 {[%clk 0:03:00.5]} 4... O-O {[%clk 0:03:00.4]} 5. Bd2 {[%clk 0:03:01]}
5... c5 {[%clk 0:02:56.1]} 6. a3 {[%clk 0:03:00.9]} 6... Bxc3 {[%clk 0:02:55.7]}
7. Bxc3 {[%clk 0:03:01.8]} 7... Ne4 {[%clk 0:02:55.5]} 8. Ne2 {[%clk 0:03:02.3]}
8... d5 {[%clk 0:02:45.6]} 9. cxd5 {[%clk 0:02:48.5]} 9... Qxd5 {[%clk
0:02:25.6]} 10. Nf4 {[%clk 0:02:35.4]} 10... Nxc3 {[%clk 0:02:11]} 11. bxc3
{[%clk 0:02:27.7]} 11... Qd6 {[%clk 0:02:05.4]} 12. Bd3 {[%clk 0:02:24.5]} 12...
e5 {[%clk 0:02:00.7]} 13. Qh5 {[%clk 0:02:19.4]} 13... g6 {[%clk 0:01:48.5]} 14.
Qxe5 {[%clk 0:01:56.2]} 14... Qxe5 {[%clk 0:01:48.7]} 15. dxe5 {[%clk
0:01:56.1]} 15... Re8 {[%clk 0:01:43.6]} 16. Nd5 {[%clk 0:01:54.2]} 16... Na6
{[%clk 0:01:23.5]} 17. Nf6+ {[%clk 0:01:47.5]} 17... Kf8 {[%clk 0:01:24.2]} 18.
Nxe8 {[%clk 0:01:46.9]} 18... Kxe8 {[%clk 0:01:25.1]} 19. Bxa6 {[%clk
0:01:46.3]} 19... bxa6 {[%clk 0:01:25.1]} 20. Rb1 {[%clk 0:01:45]} 20... Bf5
{[%clk 0:01:23]} 21. Rb2 {[%clk 0:01:40.8]} 21... Bd3 {[%clk 0:01:20.7]} 22. Kd2
{[%clk 0:01:33.8]} 22... c4 {[%clk 0:01:20.9]} 23. Rd1 {[%clk 0:01:32.2]} 23...
Rd8 {[%clk 0:01:18.4]} 24. f3 {[%clk 0:01:29.1]} 24... Rd7 {[%clk 0:01:10]} 25.
e4 {[%clk 0:01:27.5]} 25... Bxe4+ {[%clk 0:01:07.2]} 26. Ke1 {[%clk 0:01:27.6]}
26... Bd3 {[%clk 0:01:05.3]} 27. Kf2 {[%clk 0:01:27.5]} 27... Ke7 {[%clk
0:01:04.5]} 28. Rdd2 {[%clk 0:01:23.6]} 28... g5 {[%clk 0:01:02.5]} 29. Rb8
{[%clk 0:01:12.9]} 29... Ke6 {[%clk 0:00:59.8]} 30. Rdb2 {[%clk 0:01:13.5]}
30... Kxe5 {[%clk 0:00:57.7]} 31. R8b7 {[%clk 0:01:11.9]} 31... Rd6 {[%clk
0:00:36.1]} 32. Rxf7 {[%clk 0:01:09.7]} 32... Re6 {[%clk 0:00:35.6]} 33. Rxa7
{[%clk 0:01:05.4]} 33... Kd5 {[%clk 0:00:33.9]} 34. Rab7 {[%clk 0:01:01.9]}
34... h5 {[%clk 0:00:30.3]} 35. R7b6 {[%clk 0:01:01.2]} 35... Re7 {[%clk
0:00:23.7]} 36. Rxa6 {[%clk 0:01:01.4]} 36... Kc5 {[%clk 0:00:21.5]} 37. a4
{[%clk 0:01:01.4]} 1-0